fUST/lending_fUST_20250715
["ID","MTS","AMOUNT","RATE_DAILY","PERIOD"]
[372229232,1752558641433,-916.64,0.00020821,3]
[372229234,1752558641442,-9584.53830579,0.000209,4]
[372229236,1752558641452,-151.0,0.00020934,2]
[372229238,1752558641461,-207.4,0.00020934,2]
[372229240,1752558641471,-151.0,0.00020934,2]
[372229242,1752558641481,-500.0,0.00020934,2]
[372229244,1752558641490,-500.0,0.00020934,2]
[372229246,1752558641498,-500.0,0.00020934,2]
[372229248,1752558641507,-500.0,0.00020934,2]
[372229250,1752558641517,-500.0,0.00020934,2]
[372229252,1752558641525,-500.0,0.00020934,2]
[372229254,1752558641534,-151.0,0.00020934,2]
[372229256,1752558641544,-296.0,0.00020934,2]
[372229258,1752558641558,-500.0,0.00020934,2]
[372229260,1752558641567,-500.0,0.00020934,2]
[372229262,1752558641577,-500.0,0.00020934,2]
[372229264,1752558641586,-500.0,0.00020934,2]
[372229266,1752558641597,-500.0,0.00020934,2]
[372229268,1752558641606,-500.0,0.00020934,2]
[372229270,1752558641615,-593.00885531,0.00020934,2]
[372229272,1752558641625,-25000.0,0.00020934,2]
[372229274,1752558641635,-8240.85155381,0.00020934,2]
[372229276,1752558641644,-1363.11446674,0.00020951,2]
[372229278,1752558641654,-168.0,0.00020956,2]
[372229280,1752558641663,-168.0,0.00021055,2]
[372229282,1752558641672,-9584.53830563,0.00021072,4]
[372229284,1752558641681,-460.0,0.00021095,3]
[372229286,1752558641690,-463.05888377,0.00021095,3]
[372229288,1752558641700,-589.59746436,0.00021095,3]
[372229290,1752558641709,-460.0,0.00021095,3]
[372229292,1752558641718,-173.67,0.00021095,3]
[372229294,1752558641728,-376.11483223,0.00021095,3]
[372229296,1752558641737,-460.0,0.00021095,3]
[372229298,1752558641747,-460.0,0.00021095,3]
[372229300,1752558641756,-460.0,0.00021095,3]
[372229302,1752558641765,-569.21,0.00021095,3]
[372229304,1752558641775,-460.0,0.00021095,3]
[372229306,1752558641784,-460.0,0.00021095,3]
[372229308,1752558641794,-460.0,0.00021095,3]
[372229310,1752558641803,-460.0,0.00021095,3]
[372229312,1752558641813,-460.0,0.00021095,3]
[372229314,1752558641824,-460.0,0.00021095,3]
[372229316,1752558641834,-460.0,0.00021095,3]
[372229318,1752558641843,-460.0,0.00021095,3]
[372229320,1752558641852,-460.0,0.00021095,3]
[372229322,1752558641862,-460.0,0.00021095,3]
[372229324,1752558641871,-460.0,0.00021095,3]
[372229326,1752558641880,-651.99,0.00021095,3]
[372229328,1752558641891,-460.0,0.00021095,3]
[372229331,1752558641900,-460.0,0.00021095,3]
[372229333,1752558641910,-460.0,0.00021095,3]
[372229335,1752558641919,-460.0,0.00021095,3]
[372229336,1752558641926,-460.0,0.00021095,3]
[372229339,1752558641935,-313.13,0.00021095,3]
[372229340,1752558641943,-460.0,0.00021095,3]
[372229342,1752558641951,-460.0,0.00021095,3]
[372229344,1752558641959,-460.0,0.00021095,3]
[372229346,1752558641966,-460.0,0.00021095,3]
[372229348,1752558641974,-506.13,0.00021095,3]
[372229350,1752558641981,-515.07894242,0.00021095,3]
[372229352,1752558641990,-539.43,0.00021095,3]
[372229354,1752558641999,-460.0,0.00021095,3]
[372229356,1752558642006,-460.0,0.00021095,3]
[372229358,1752558642014,-3964.64,0.00021095,3]
[372229360,1752558642023,-1109.05,0.00021095,3]
[372229362,1752558642031,-563.76,0.00021095,3]
[372229364,1752558642039,-1933.38,0.00021095,3]
[372229367,1752558642048,-4238.59,0.00021095,3]
[372229369,1752558642057,-638.32,0.00021095,3]
[372229371,1752558642065,-460.0,0.00021095,3]
[372229372,1752558642073,-460.0,0.00021095,3]
[372229375,1752558642081,-863.3,0.00021095,3]
[372229377,1752558642089,-460.0,0.00021095,3]
[372229379,1752558642097,-981.35,0.00021095,3]
[372229381,1752558642105,-2891.0,0.00021095,3]
[372229383,1752558642112,-3818.73,0.00021095,3]
[372229385,1752558642120,-460.0,0.00021095,3]
[372229387,1752558642128,-460.0,0.00021095,3]
[372229389,1752558642135,-582.30568966,0.00021095,3]
[372229391,1752558642142,-460.0,0.00021095,3]
[372229393,1752558642150,-1407.64,0.00021095,3]
[372229395,1752558642159,-1770.13,0.00021095,3]
[372229397,1752558642166,-460.0,0.00021095,3]
[372229399,1752558642173,-460.0,0.00021095,3]
[372229401,1752558642181,-665.01,0.00021095,3]
[372229403,1752558642190,-460.0,0.00021095,3]
[372229405,1752558642199,-451.24575484,0.00021095,3]
[372229408,1752558642207,-460.0,0.00021095,3]
[372229409,1752558642214,-1892.63,0.00021095,3]
[372229411,1752558642222,-460.0,0.00021095,3]
[372229413,1752558642231,-460.0,0.00021095,3]
[372229415,1752558642241,-460.0,0.00021095,3]
[372229417,1752558642251,-460.0,0.00021095,3]
[372229420,1752558642261,-460.0,0.00021095,3]
[372229421,1752558642270,-460.0,0.00021095,3]
[372229423,1752558642280,-460.0,0.00021095,3]
[372229425,1752558642289,-1344.04,0.00021095,3]
[372229427,1752558642301,-460.0,0.00021095,3]
[372229429,1752558642310,-837.0,0.00021095,3]
[372229432,1752558642320,-460.0,0.00021095,3]
[372229434,1752558642329,-460.0,0.00021095,3]
[372229436,1752558642338,-460.0,0.00021095,3]
[372229448,1752558642441,-937.5,0.00021095,3]
[372229450,1752558642452,-537.31,0.00021095,3]
[372229452,1752558642461,-486.48,0.00021095,3]
[372229455,1752558642470,-517.57,0.00021095,3]
[372229457,1752558642479,-300.34178847,0.00021095,3]
[372229458,1752558642488,-505.42,0.00021095,3]
[372229460,1752558642497,-460.0,0.00021095,3]
[372229462,1752558642506,-2330.64,0.00021095,3]
[372229464,1752558642515,-2683.94,0.00021095,3]
[372229466,1752558642524,-160.8126597,0.00021095,3]
[372229468,1752558642533,-731.9,0.00021095,3]
[372229470,1752558642543,-460.0,0.00021095,3]
[372229472,1752558642556,-460.0,0.00021095,3]
[372229474,1752558642565,-460.0,0.00021095,3]
[372229476,1752558642574,-460.0,0.00021095,3]
[372229478,1752558642583,-460.0,0.00021095,3]
[372229480,1752558642592,-460.0,0.00021095,3]
[372229482,1752558642602,-782.59,0.00021095,3]
[372229484,1752558642611,-460.0,0.00021095,3]
[372229486,1752558642621,-464.22433652,0.00021095,3]
[372229488,1752558642630,-4178.47,0.00021095,3]
[372229490,1752558642639,-1606.95,0.00021095,3]
[372229492,1752558642648,-462.34,0.00021095,3]
[372229494,1752558642657,-515.79263716,0.00021095,3]
[372229496,1752558642667,-460.0,0.00021095,3]
[372229498,1752558642676,-460.0,0.00021095,3]
[372229500,1752558642685,-916.64,0.00021095,3]
[372229502,1752558642695,-164.6973029,0.00021096,2]
[372229504,1752558642703,-1000.0,0.00021121,2]
[372229506,1752558642713,-1910.0,0.00021164,2]
[372229508,1752558642722,-1363.11446674,0.0002123,2]
[372229510,1752558642732,-9584.53830563,0.00021245,4]
[372229512,1752558642742,-2568.93839526,0.00021271,2]
[372229514,1752558642751,-151.0,0.000213,3]
[372229516,1752558642760,-160.0,0.00021304,2]
[372229518,1752558642770,-12603.13032295,0.00021304,2]
[372229520,1752558642780,-160.0,0.00021304,2]
[372229522,1752558642789,-160.0,0.00021304,2]
[372229524,1752558642799,-468.75,0.00021304,2]
[372229526,1752558642809,-215.50840239,0.00021304,2]
[372229528,1752558642819,-838.84061749,0.00021304,2]
[372229530,1752558642828,-230.76969291,0.00021304,2]
[372229532,1752558642838,-214.37129034,0.00021304,2]
[372229534,1752558642847,-525.51022752,0.00021304,2]
[372229536,1752558642857,-160.0,0.00021304,2]
[372229538,1752558642867,-160.0,0.00021305,2]
[372229540,1752558642876,-160.0,0.00021305,2]
[372229542,1752558642885,-160.0,0.00021305,2]
[372229544,1752558642895,-160.0,0.00021306,2]
[372229547,1752558642904,-1000.0,0.00021321,2]
[372229549,1752558642914,-1000.0,0.00021321,2]
[372229552,1752558642923,-1000.0,0.00021321,2]
[372229554,1752558642932,-500.0,0.00021352,2]
[372229556,1752558642942,-460.0,0.00021369,3]
[372229558,1752558642952,-460.0,0.00021369,3]
[372229560,1752558642961,-460.0,0.00021369,3]
[372229562,1752558642971,-460.0,0.00021369,3]
[372229564,1752558642981,-460.0,0.00021369,3]
[372229566,1752558642991,-569.21,0.00021369,3]
[372229568,1752558643000,-460.0,0.00021369,3]
[372229570,1752558643010,-460.0,0.00021369,3]
[372229572,1752558643019,-460.0,0.00021369,3]
[372229574,1752558643029,-460.0,0.00021369,3]
[372229576,1752558643039,-460.0,0.00021369,3]
[372229578,1752558643049,-460.0,0.00021369,3]
[372229581,1752558643062,-460.0,0.00021369,3]
[372229583,1752558643072,-460.0,0.00021369,3]
[372229584,1752558643082,-460.0,0.00021369,3]
[372229586,1752558643091,-460.0,0.00021369,3]
[372229589,1752558643102,-651.99,0.00021369,3]
[372229591,1752558643111,-460.0,0.00021369,3]
[372229593,1752558643120,-460.0,0.00021369,3]
[372229595,1752558643130,-460.0,0.00021369,3]
[372229597,1752558643139,-460.0,0.00021369,3]
[372229599,1752558643148,-460.0,0.00021369,3]
[372229601,1752558643158,-460.0,0.00021369,3]
[372229603,1752558643167,-460.0,0.00021369,3]
[372229605,1752558643176,-460.0,0.00021369,3]
[372229607,1752558643186,-506.13,0.00021369,3]
[372229609,1752558643195,-539.43,0.00021369,3]
[372229611,1752558643204,-460.0,0.00021369,3]
[372229613,1752558643213,-460.0,0.00021369,3]
[372229615,1752558643223,-3964.64,0.00021369,3]
[372229617,1752558643232,-1109.05,0.00021369,3]
[372229619,1752558643241,-563.76,0.00021369,3]
[372229621,1752558643250,-1933.38,0.00021369,3]
[372229623,1752558643259,-4238.59,0.00021369,3]
[372229624,1752558643269,-638.32,0.00021369,3]
[372229627,1752558643278,-460.0,0.00021369,3]
[372229628,1752558643287,-460.0,0.00021369,3]
[372229631,1752558643297,-863.3,0.00021369,3]
[372229632,1752558643309,-460.0,0.00021369,3]
[372229634,1752558643318,-981.35,0.00021369,3]
[372229637,1752558643329,-2891.0,0.00021369,3]
[372229639,1752558643338,-3818.73,0.00021369,3]
[372229641,1752558643347,-460.0,0.00021369,3]
[372229642,1752558643357,-460.0,0.00021369,3]
[372229645,1752558643367,-460.0,0.00021369,3]
[372229646,1752558643377,-1407.64,0.00021369,3]
[372229648,1752558643387,-1770.13,0.00021369,3]
[372229650,1752558643398,-460.0,0.00021369,3]
[372229652,1752558643407,-460.0,0.00021369,3]
[372229654,1752558643416,-665.01,0.00021369,3]
[372229657,1752558643425,-464.58839822,0.00021369,3]
[372229659,1752558643434,-460.0,0.00021369,3]
[372229662,1752558643444,-1892.63,0.00021369,3]
[372229663,1752558643453,-460.0,0.00021369,3]
[372229665,1752558643462,-460.0,0.00021369,3]
[372229667,1752558643471,-233.01954042,0.00021369,3]
[372229669,1752558643481,-460.0,0.00021369,3]
[372229671,1752558643491,-312.0,0.00021369,3]
[372229674,1752558643500,-460.0,0.00021369,3]
[372229676,1752558643509,-1344.04,0.00021369,3]
[372229678,1752558643519,-837.0,0.00021369,3]
[372229679,1752558643528,-460.0,0.00021369,3]
[372229681,1752558643537,-284.36851286,0.00021369,3]
[372229683,1752558643549,-460.0,0.00021369,3]
[372229685,1752558643561,-937.5,0.00021369,3]
[372229687,1752558643570,-537.31,0.00021369,3]
[372229689,1752558643580,-486.48,0.00021369,3]
[372229692,1752558643591,-517.57,0.00021369,3]
[372229694,1752558643602,-505.42,0.00021369,3]
[372229695,1752558643612,-460.0,0.00021369,3]
[372229697,1752558643621,-2330.64,0.00021369,3]
[372229699,1752558643632,-2683.94,0.00021369,3]
[372229701,1752558643642,-731.9,0.00021369,3]
[372229703,1752558643651,-460.0,0.00021369,3]
[372229705,1752558643662,-460.0,0.00021369,3]
[372229707,1752558643671,-460.0,0.00021369,3]
[372229709,1752558643681,-460.0,0.00021369,3]
[372229711,1752558643690,-460.0,0.00021369,3]
[372229713,1752558643700,-460.0,0.00021369,3]
[372229715,1752558643709,-782.59,0.00021369,3]
[372229717,1752558643719,-460.0,0.00021369,3]
[372229719,1752558643728,-4178.47,0.00021369,3]
[372229721,1752558643737,-1606.95,0.00021369,3]
[372229723,1752558643746,-462.34,0.00021369,3]
[372229725,1752558643756,-460.0,0.00021369,3]
[372229727,1752558643765,-460.0,0.00021369,3]
[372229729,1752558643775,-916.64,0.00021369,3]
[372229731,1752558643785,-500.0,0.000214,2]
[372229733,1752558643795,-9584.53830563,0.00021417,5]
[372229735,1752558643805,-4995.96128383,0.00021427,2]
[372229737,1752558643815,-1829.21367084,0.00021444,2]
[372229739,1752558643824,-151.22456728,0.00021482,2]
[372229741,1752558643834,-420.0,0.00021484,2]
[372229743,1752558643843,-151.0,0.000215,4]
[372229745,1752558643852,-1910.0,0.00021503,2]
[372229747,1752558643861,-1363.11446674,0.00021508,2]
[372229749,1752558643870,-168.0,0.00021589,2]
[372229751,1752558643880,-9584.53830563,0.0002159,5]
[372229753,1752558643889,-376.47138,0.00021599,8]
[372229755,1752558643899,-151.0,0.000216,3]
[372229757,1752558643908,-2371.86,0.000216,2]
[372229759,1752558643918,-151.0,0.00021643,2]
[372229762,1752558643928,-460.0,0.00021643,3]
[372229763,1752558643938,-506.283417,0.00021643,2]
[372229766,1752558643948,-151.0,0.00021643,2]
[372229768,1752558643959,-151.0,0.00021643,2]
[372229770,1752558643968,-151.0,0.00021643,2]
[372229771,1752558643978,-460.0,0.00021643,3]
[372229773,1752558643988,-460.0,0.00021643,3]
[372229775,1752558643998,-460.0,0.00021643,3]
[372229777,1752558644007,-460.0,0.00021643,3]
[372229779,1752558644017,-569.21,0.00021643,3]
[372229781,1752558644026,-460.0,0.00021643,3]
[372229783,1752558644036,-460.0,0.00021643,3]
[372229785,1752558644046,-460.0,0.00021643,3]
[372229787,1752558644058,-460.0,0.00021643,3]
[372229789,1752558644067,-460.0,0.00021643,3]
[372229791,1752558644077,-460.0,0.00021643,3]
[372229793,1752558644086,-460.0,0.00021643,3]
[372229795,1752558644096,-460.0,0.00021643,3]
[372229797,1752558644106,-460.0,0.00021643,3]
[372229800,1752558644115,-460.0,0.00021643,3]
[372229802,1752558644125,-651.99,0.00021643,3]
[372229804,1752558644135,-460.0,0.00021643,3]
[372229805,1752558644145,-460.0,0.00021643,3]
[372229807,1752558644154,-460.0,0.00021643,3]
[372229809,1752558644163,-460.0,0.00021643,3]
[372229811,1752558644172,-460.0,0.00021643,3]
[372229813,1752558644181,-460.0,0.00021643,3]
[372229815,1752558644190,-460.0,0.00021643,3]
[372229818,1752558644200,-460.0,0.00021643,3]
[372229820,1752558644209,-506.13,0.00021643,3]
[372229822,1752558644219,-539.43,0.00021643,3]
[372229824,1752558644228,-460.0,0.00021643,3]
[372229825,1752558644237,-460.0,0.00021643,3]
[372229828,1752558644247,-3964.64,0.00021643,3]
[372229830,1752558644256,-1109.05,0.00021643,3]
[372229832,1752558644266,-563.76,0.00021643,3]
[372229833,1752558644275,-1933.38,0.00021643,3]
[372229835,1752558644284,-4238.59,0.00021643,3]
[372229837,1752558644294,-638.32,0.00021643,3]
[372229839,1752558644303,-460.0,0.00021643,3]
[372229841,1752558644312,-460.0,0.00021643,3]
[372229843,1752558644322,-863.3,0.00021643,3]
[372229845,1752558644331,-460.0,0.00021643,3]
[372229847,1752558644341,-981.35,0.00021643,3]
[372229849,1752558644351,-2891.0,0.00021643,3]
[372229852,1752558644361,-3818.73,0.00021643,3]
[372229854,1752558644371,-460.0,0.00021643,3]
[372229855,1752558644380,-460.0,0.00021643,3]
[372229857,1752558644391,-460.0,0.00021643,3]
[372229859,1752558644400,-1407.64,0.00021643,3]
[372229861,1752558644410,-1770.13,0.00021643,3]
[372229863,1752558644419,-460.0,0.00021643,3]
[372229865,1752558644429,-460.0,0.00021643,3]
[372229867,1752558644438,-665.01,0.00021643,3]
[372229869,1752558644448,-460.0,0.00021643,3]
[372229872,1752558644458,-1892.63,0.00021643,3]
[372229873,1752558644468,-460.0,0.00021643,3]
[372229875,1752558644477,-460.0,0.00021643,3]
[372229877,1752558644487,-460.0,0.00021643,3]
[372229879,1752558644496,-460.0,0.00021643,3]
[372229882,1752558644506,-1344.04,0.00021643,3]
[372229884,1752558644515,-837.0,0.00021643,3]
[372229885,1752558644524,-460.0,0.00021643,3]
[372229888,1752558644533,-460.0,0.00021643,3]
[372229890,1752558644542,-937.5,0.00021643,3]
[372229901,1752558644636,-537.31,0.00021643,3]
[372229903,1752558644656,-486.48,0.00021643,3]
[372229905,1752558644666,-517.57,0.00021643,3]
[372229907,1752558644675,-505.42,0.00021643,3]
[372229909,1752558644686,-460.0,0.00021643,3]
[372229911,1752558644696,-2330.64,0.00021643,3]
[372229913,1752558644705,-2683.94,0.00021643,3]
[372229915,1752558644714,-731.9,0.00021643,3]
[372229917,1752558644724,-460.0,0.00021643,3]
[372229919,1752558644734,-460.0,0.00021643,3]
[372229921,1752558644745,-460.0,0.00021643,3]
[372229923,1752558644754,-460.0,0.00021643,3]
[372229925,1752558644763,-460.0,0.00021643,3]
[372229927,1752558644773,-554.60881252,0.00021643,3]
[372229929,1752558644783,-460.0,0.00021643,3]
[372229931,1752558644792,-782.59,0.00021643,3]
[372229933,1752558644801,-4178.47,0.00021643,3]
[372229935,1752558644814,-1606.95,0.00021643,3]
[372229937,1752558644823,-462.34,0.00021643,3]
[372229939,1752558644834,-460.0,0.00021643,3]
[372229941,1752558644843,-460.0,0.00021643,3]
[372229944,1752558644853,-916.64,0.00021643,3]
[372229946,1752558644863,-150000.0,0.00021643,2]
[372229948,1752558644872,-150000.0,0.00021643,2]
[372229950,1752558644882,-24552.81758644,0.00021643,2]
[372229955,1752558644900,-266.8,0.00021643,2]
[372229960,1752558644911,-1009.13986329,0.00021643,2]
[372229962,1752558644922,-2320.95596561,0.00021643,2]
[372229964,1752558644933,-594.98404894,0.00021643,2]
[372229966,1752558644945,-561.84778779,0.00021643,2]
[372229968,1752558644959,-1036.8367471,0.00021643,2]
[372229975,1752558645017,-267.26616415,0.00020711,10]
[372229977,1752558645028,-3232.15383585,0.00020711,10]
[372229979,1752558645038,-119656.61800083,0.00021643,2]
[372229981,1752558645047,-1500.0,0.00021668,2]
[372229983,1752558645059,-158.05766688,0.00021673,2]
[372229985,1752558645068,-501.4784424,0.00021673,2]
[372229987,1752558645077,-500.0,0.00021673,2]
[372229989,1752558645087,-502.85524279,0.00021673,2]
[372229991,1752558645096,-501.2927436,0.00021673,2]
[372229993,1752558645106,-1000.0,0.00021677,5]
[372229995,1752558645115,-151.0,0.000217,4]
[372229997,1752558645124,-279.118742,0.000217,2]
[372229999,1752558645134,-160.0,0.0002171,2]
[372230001,1752558645143,-9584.53830563,0.00021762,5]
[372230003,1752558645152,-800.0,0.00021763,2]
[372230005,1752558645162,-1363.11446674,0.00021786,2]
[372230007,1752558645172,-151.0,0.000218,3]
[372230009,1752558645182,-151.0,0.000218,3]
[372230011,1752558645192,-151.0,0.000218,3]
[372230013,1752558645201,-1696.71603873,0.000218,2]
[372230014,1752558645212,-468.87213272,0.000218,2]
[372230015,1752558645228,-3164.1366617,0.000218,2]
[372230016,1752558645240,-22785.39516685,0.000218,2]
[372230017,1752558645249,-4956.43,0.000218,2]
[372230018,1752558645259,-800.0,0.00021805,2]
[372230019,1752558645268,-6604.5727777,0.00021818,2]
[372230020,1752558645277,-800.0,0.00021821,2]
[372230021,1752558645287,-800.0,0.00021864,2]
[372230022,1752558645297,-1500.0,0.00021868,2]
[372230024,1752558645308,-1500.0,0.00021868,2]
[372230025,1752558645317,-520.47572642,0.00021868,2]
[372230026,1752558645327,-2568.93839526,0.00021869,2]
[372230027,1752558645336,-151.0,0.00021869,2]
[372230028,1752558645346,-151.0,0.00021869,2]
[372230029,1752558645355,-1042.269626,0.00021869,2]
[372230030,1752558645364,-1042.269626,0.00021869,2]
[372230032,1752558645374,-151.0,0.00021869,2]
[372230034,1752558645384,-151.0,0.00021869,2]
[372230036,1752558645394,-151.0,0.00021869,2]
[372230039,1752558645403,-501.98558021,0.00021873,2]
[372230042,1752558645413,-500.0,0.00021873,2]
[372230045,1752558645422,-522.53502255,0.00021873,2]
[372230048,1752558645432,-500.49213131,0.00021873,2]
[372230050,1752558645441,-500.0,0.00021873,2]
[372230052,1752558645451,-500.8436141,0.00021873,2]
[372230055,1752558645461,-800.0,0.00021886,2]
[372230057,1752558645471,-1829.21367084,0.00021889,2]
[372230059,1752558645480,-279.118742,0.00021907,10]
[372230060,1752558645490,-151.0,0.00021917,2]
[372230062,1752558645500,-151.0,0.00021917,2]
[372230064,1752558645510,-151.0,0.00021917,2]
[372230066,1752558645519,-155.243515,0.00021917,2]
[372230068,1752558645529,-151.0,0.00021917,2]
[372230071,1752558645539,-151.0,0.00021917,2]
[372230073,1752558645551,-460.0,0.00021917,3]
[372230074,1752558645563,-151.0,0.00021917,2]
[372230076,1752558645573,-151.0,0.00021917,2]
[372230078,1752558645583,-151.0,0.00021917,2]
[372230081,1752558645592,-283.05259,0.00021917,2]
[372230082,1752558645602,-460.0,0.00021917,3]
[372230085,1752558645612,-460.0,0.00021917,3]
[372230087,1752558645622,-460.0,0.00021917,3]
[372230088,1752558645632,-460.0,0.00021917,3]
[372230090,1752558645642,-569.21,0.00021917,3]
[372230092,1752558645652,-460.0,0.00021917,3]
[372230094,1752558645662,-460.0,0.00021917,3]
[372230097,1752558645672,-460.0,0.00021917,3]
[372230098,1752558645681,-460.0,0.00021917,3]
[372230100,1752558645691,-460.0,0.00021917,3]
[372230102,1752558645700,-460.0,0.00021917,3]
[372230104,1752558645710,-460.0,0.00021917,3]
[372230107,1752558645720,-460.0,0.00021917,3]
[372230108,1752558645729,-460.0,0.00021917,3]
[372230110,1752558645738,-460.0,0.00021917,3]
[372230113,1752558645748,-651.99,0.00021917,3]
[372230115,1752558645758,-460.0,0.00021917,3]
[372230117,1752558645767,-460.0,0.00021917,3]
[372230119,1752558645776,-563.04241215,0.00021917,3]
[372230121,1752558645785,-460.0,0.00021917,3]
[372230122,1752558645795,-460.0,0.00021917,3]
[372230124,1752558645806,-460.0,0.00021917,3]
[372230126,1752558645816,-460.0,0.00021917,3]
[372230129,1752558645826,-460.0,0.00021917,3]
[372230130,1752558645835,-506.13,0.00021917,3]
[372230132,1752558645845,-539.43,0.00021917,3]
[372230134,1752558645855,-460.0,0.00021917,3]
[372230136,1752558645864,-460.0,0.00021917,3]
[372230138,1752558645874,-3964.64,0.00021917,3]
[372230140,1752558645884,-1109.05,0.00021917,3]
[372230142,1752558645896,-563.76,0.00021917,3]
[372230144,1752558645906,-1933.38,0.00021917,3]
[372230146,1752558645915,-4238.59,0.00021917,3]
[372230150,1752558645925,-638.32,0.00021917,3]
[372230152,1752558645937,-460.0,0.00021917,3]
[372230153,1752558645946,-460.0,0.00021917,3]
[372230155,1752558645956,-863.3,0.00021917,3]
[372230158,1752558645966,-460.0,0.00021917,3]
[372230159,1752558645976,-981.35,0.00021917,3]
[372230161,1752558645985,-2891.0,0.00021917,3]
[372230163,1752558645994,-3818.73,0.00021917,3]
[372230165,1752558646003,-460.0,0.00021917,3]
[372230167,1752558646013,-460.0,0.00021917,3]
[372230169,1752558646023,-460.0,0.00021917,3]
[372230171,1752558646032,-1407.64,0.00021917,3]
[372230173,1752558646041,-1770.13,0.00021917,3]
[372230175,1752558646050,-460.0,0.00021917,3]
[372230178,1752558646060,-460.0,0.00021917,3]
[372230181,1752558646070,-665.01,0.00021917,3]
[372230183,1752558646079,-460.0,0.00021917,3]
[372230185,1752558646089,-1892.63,0.00021917,3]
[372230187,1752558646098,-460.0,0.00021917,3]
[372230189,1752558646108,-465.73026821,0.00021917,3]
[372230191,1752558646118,-460.0,0.00021917,3]
[372230193,1752558646127,-460.0,0.00021917,3]
[372230195,1752558646136,-1344.04,0.00021917,3]
[372230197,1752558646146,-837.0,0.00021917,3]
[372230199,1752558646155,-460.0,0.00021917,3]
[372230201,1752558646165,-460.0,0.00021917,3]
[372230203,1752558646174,-937.5,0.00021917,3]
[372230205,1752558646184,-537.31,0.00021917,3]
[372230207,1752558646193,-486.48,0.00021917,3]
[372230209,1752558646203,-517.57,0.00021917,3]
[372230211,1752558646212,-505.42,0.00021917,3]
[372230213,1752558646222,-460.0,0.00021917,3]
[372230215,1752558646231,-2330.64,0.00021917,3]
[372230217,1752558646241,-351.10815056,0.00021917,3]
[372230234,1752558646423,-460.0,0.00020547,3]
[372230236,1752558646433,-460.0,0.00020547,3]
[372230238,1752558646443,-460.0,0.00020821,3]
[372230240,1752558646452,-2332.83184944,0.00021917,3]
[372230242,1752558646463,-460.0,0.00021917,3]
[372230244,1752558646473,-731.9,0.00021917,3]
[372230246,1752558646482,-460.0,0.00021917,3]
[372230248,1752558646492,-460.0,0.00021917,3]
[372230250,1752558646501,-460.0,0.00021917,3]
[372230252,1752558646516,-460.0,0.00021917,3]
[372230255,1752558646531,-782.59,0.00021917,3]
[372230257,1752558646540,-301.31078924,0.00021917,3]
[372230269,1752558646649,-460.0,0.00020547,3]
[372230271,1752558646658,-8.4,0.00020821,3]
[372230538,1752558697378,163.578413,0.00013699,2]
[372230541,1752559256634,3877.20004776,0.00013699,2]
[372230542,1752559257543,1938.60002388,0.00013699,2]
[372230543,1752559258366,969.30001194,0.00013699,2]
[372230544,1752559259069,484.65000597,0.00013699,2]
[372230545,1752559262246,242.32500299,0.00013699,2]
[372230547,1752559552461,242.32500298,0.00013699,2]